[Event "GER-ch Youth-U12 2022"]
[Site "Willingen"]
[Date "2022.06.06"]
[Round "3.5"]
[White "Martin Fernandez, Rafael"]
[Black "Wartenberg, Alexander"]
[Result "1-0"]
[ECO "C24"]
[WhiteElo "1678"]
[BlackElo "1682"]
[Annotator "NA RC COMBH"]
[PlyCount "71"]
[EventDate "2022.06.05"]
[EventType "swiss"]
[EventRounds "9"]
[EventCountry "GER"]
[SourceTitle "playchess.com"]
[Source "ChessBase"]
[SourceQuality "1"]
[TimeControl "40/4500+30:900+30"]

1. e4 {[%emt 0:00:00]} e5 {[%emt 0:00:00]} 2. Bc4 {[%emt 0:00:00]} Nf6 {[%emt 0:00:00]} 3. d3 {[%emt 0:00:00]} Nc6 {[%emt 0:00:00]} 4. Nf3 {[%emt 0:00:00]} d5 {[%emt 0:00:00]} 5. exd5 {[%emt 0:00:00]} Nxd5 {[%emt 0:00:00]} 6. O-O {[%emt 0:00:00]} Bg4 {[%emt 0:00:00]} 7. h3 {[%emt 0:00:00]} Bh5 {[%emt 0:00:00]} 8. Nc3 {[%emt 0:00:00]} Nxc3 {[%emt 0:00:00]} 9. bxc3 {[%emt 0:00:00]} Bc5 {[%emt 0:00:00]} 10. Re1 {[%emt 0:00:00]} Bd6 {[%emt 0:00:05]} 11. Nxe5 {[%emt 0:00:00]} Nxe5 {[%emt 0:10:58]} 12. Qxh5 {[%emt 0:00:00]} O-O {[%emt 0:00:18]} 13. Rxe5 {[%emt 0:01:14]} Bxe5 {[%emt 0:00:49]} 14. Qxe5 {[%emt 0:00:10]} Re8 {[%emt 0:00:24]} 15. Qg3 {[%emt 0:00:16]} Re1+ {[%emt 0:01:17]} 16. Kh2 {[%emt 0:00:09]} Qf6 {[%emt 0:03:19]} 17. Bb2 {[%emt 0:05:30]} Rxa1 {[%emt 0:01:12]} 18. Bxa1 {[%emt 0:00:07]} c6 {[%emt 0:03:50]} 19. d4 {[%emt 0:03:52]} b5 {[%emt 0:01:37]} 20. Bd3 {[%emt 0:01:27]} Qe6 {[%emt 0:01:34]} 21. Qh4 {[%emt 0:01:56]} g6 {[%emt 0:01:16]} 22. c4 {[%emt 0:02:38]} bxc4 {[%emt 0:02:02]} 23. Be4 {[%emt 0:02:39]} f5 {[%emt 0:07:47]} 24. Bf3 {[%emt 0:04:00]} Qd6+ {[%emt 0:09:42]} 25. Qg3 {[%emt 0:01:51]} f4 {[%emt 0:02:43]} 26. Qg5 {[%emt 0:01:22]} Rb8 {[%emt 0:01:46]} 27. d5 {[%emt 0:01:12]} Re8 {[%emt 0:09:47]} 28. dxc6 {[%emt 0:00:49]} Re1 {[%emt 0:02:38]} 29. Bd5+ {[%emt 0:00:32]} Kf8 {[%emt 0:00:10]} 30. Qf6+ {[%emt 0:03:06]} Qxf6 {[%emt 0:00:17]} 31. Bxf6 {[%emt 0:00:05]} Re8 {[%emt 0:00:33]} 32. c7 {[%emt 0:00:21]} Rc8 {[%emt 0:00:08]} 33. Bd8 {[%emt 0:00:10]} Ke8 {[%emt 0:00:24]} 34. Bc6+ {[%emt 0:00:08]} Kf7 {[%emt 0:00:22]} 35. Bd7 {[%emt 0:00:05]} Rxc7 {[%emt 0:00:34]} 36. Bxc7 {[%emt 0:00:06]} 1-0

[Event "GER-ch Youth-U12 2022"]
[Site "Willingen"]
[Date "2022.06.06"]
[Round "3.7"]
[White "Limmer, Marco"]
[Black "Nechitailo, Nikita"]
[Result "0-1"]
[ECO "B39"]
[WhiteElo "1825"]
[BlackElo "1371"]
[Annotator "NA RC COMBH"]
[PlyCount "88"]
[EventDate "2022.06.05"]
[EventType "swiss"]
[EventRounds "9"]
[EventCountry "GER"]
[SourceTitle "playchess.com"]
[Source "ChessBase"]
[SourceQuality "1"]
[TimeControl "40/4500+30:900+30"]

1. e4 {[%emt 0:00:00]} c5 {[%emt 0:00:00]} 2. Nf3 {[%emt 0:00:00]} Nc6 {[%emt 0:00:00]} 3. d4 {[%emt 0:00:00]} cxd4 {[%emt 0:00:00]} 4. Nxd4 {[%emt 0:00:00]} g6 {[%emt 0:00:00]} 5. c4 {[%emt 0:00:00]} Bg7 {[%emt 0:00:00]} 6. Be3 {[%emt 0:00:00]} Nf6 {[%emt 0:00:00]} 7. Nc3 $14 {[%emt 0:00:00]} Ng4 {[%emt 0:00:00]} 8. Qxg4 {[%emt 0:00:00]} Nxd4 {[%emt 0:00:00]} 9. Qd1 {[%emt 0:00:00]} e5 {[%emt 0:00:00]} 10. Be2 {[%emt 0:00:00]} d6 {[%emt 0:00:00]} 11. Qd2 {[%emt 0:00:00]} Be6 {[%emt 0:00:00]} 12. Bxd4 {[%emt 0:00:00]} exd4 {[%emt 0:00:00]} 13. Nb5 {[%emt 0:03:04]} Rc8 {[%emt 0:00:00]} 14. Nxd4 {[%emt 0:02:17]} Bxc4 {[%emt 0:00:00]} 15. Nb5 {[%emt 0:05:41]} O-O {[%emt 0:00:00]} 16. Nxd6 {[%emt 0:00:03]} Bxe2 {[%emt 0:00:00]} 17. Nxc8 {[%emt 0:00:27]} Qxd2+ {[%emt 0:00:00]} 18. Kxd2 {[%emt 0:00:10]} Ba6 {[%emt 0:03:04]} 19. Ne7+ {[%emt 0:06:29]} Kh8 {[%emt 0:00:05]} 20. Nd5 {[%emt 0:02:15]} Re8 {[%emt 0:01:56]} 21. Nc3 {[%emt 0:11:13]} f5 {[%emt 0:06:47]} 22. exf5 {[%emt 0:03:58]} Rd8+ {[%emt 0:00:21]} 23. Kc2 {[%emt 0:02:58]} Bd3+ {[%emt 0:00:16]} 24. Kb3 {[%emt 0:01:33]} Rd6 {[%emt 0:01:20]} 25. Na4 {[%emt 0:02:59]} b5 {[%emt 0:04:31]} 26. Nc3 {[%emt 0:01:29]} a5 {[%emt 0:04:49]} 27. a4 {[%emt 0:03:02]} Bc4+ {[%emt 0:00:00]} 28. Kc2 {[%emt 0:00:35]} b4 {[%emt 0:00:00]} 29. Nd1 {[%emt 0:08:52]} b3+ {[%emt 0:01:49]} 30. Kc1 {[%emt 0:00:50]} Be2 {[%emt 0:00:31]} 31. f4 {[%emt 0:04:53]} Bd4 {[%emt 0:04:04]} 32. Kd2 {[%emt 0:03:36]} Ba6 {[%emt 0:08:47]} 33. Kc1 {[%emt 0:05:27]} Be2 {[%emt 0:23:50]} 34. Kd2 {[%emt 0:00:29]} Bg4 {[%emt 0:07:51]} 35. Ne3 {[%emt 0:12:29]} Bxb2+ {[%emt 0:00:49]} 36. Ke1 {[%emt 0:00:37]} Bxa1 {[%emt 0:03:40]} 37. Nxg4 {[%emt 0:00:08]} gxf5 {[%emt 0:01:30]} 38. Ke2 {[%emt 0:05:21]} Bc3 {[%emt 0:05:07]} 39. Ne3 {[%emt 0:00:50]} Rd2+ {[%emt 0:00:27]} 40. Kf3 {[%emt 0:00:10]} b2 {[%emt 0:00:25]} 41. Rb1 {[%emt 0:15:11]} h5 {[%emt 0:21:17]} 42. h3 {[%emt 0:01:30]} Kh7 {[%emt 0:01:16]} 43. g4 {[%emt 0:00:45]} fxg4+ {[%emt 0:00:53]} 44. hxg4 {[%emt 0:00:05]} h4 {[%emt 0:00:30]} 0-1

[Event "GER-ch Youth-U12 2022"]
[Site "Willingen"]
[Date "2022.06.06"]
[Round "3.8"]
[White "Zhuikov, Edgard"]
[Black "Aweh, Mads"]
[Result "1-0"]
[ECO "B22"]
[WhiteElo "1892"]
[BlackElo "1438"]
[Annotator "NA RC COMBH"]
[PlyCount "93"]
[EventDate "2022.06.05"]
[EventType "swiss"]
[EventRounds "9"]
[EventCountry "GER"]
[SourceTitle "playchess.com"]
[Source "ChessBase"]
[SourceQuality "1"]
[TimeControl "40/4500+30:900+30"]

1. e4 {[%emt 0:00:00]} c5 {[%emt 0:00:00]} 2. d4 {[%emt 0:00:00]} cxd4 {[%emt 0:00:00]} 3. c3 {[%emt 0:00:00]} Nf6 {[%emt 0:00:00]} 4. e5 {[%emt 0:00:00]} Nd5 {[%emt 0:00:00]} 5. Nf3 {[%emt 0:00:00]} Nc6 {[%emt 0:00:00]} 6. cxd4 {[%emt 0:00:00]} d6 {[%emt 0:00:00]} 7. Bc4 {[%emt 0:00:00]} Nb6 {[%emt 0:00:00]} 8. Bb3 {[%emt 0:00:00]} dxe5 {[%emt 0:00:00]} 9. d5 {[%emt 0:00:00]} Na5 {[%emt 0:00:00]} 10. Nc3 {[%emt 0:00:00]} Nxb3 {[%emt 0:00:00]} 11. Qxb3 {[%emt 0:00:00]} g6 {[%emt 0:00:00]} 12. Nxe5 {[%emt 0:00:00]} Bg7 {[%emt 0:00:00]} 13. Qb5+ {[%emt 0:00:00]} Bd7 {[%emt 0:00:00]} 14. Nxd7 {[%emt 0:00:00]} Qxd7 {[%emt 0:00:00]} 15. O-O {[%emt 0:00:00]} (15. Qb3 $142) 15... Qxb5 {[%emt 0:00:42]} 16. Nxb5 {[%emt 0:00:00]} O-O {[%emt 0:00:16]} (16... Nxd5 $17 17. Rd1 e6 18. Nd6+ Ke7 19. Nxb7 Rab8) 17. d6 {[%emt 0:00:00]} e6 $11 {[%emt 0:03:13]} (17... exd6 {is superior.} 18. Nxd6 Na4) 18. Rd1 {[%emt 0:00:00]} Nd5 {[%emt 0:01:30]} 19. Nc7 {[%emt 0:00:00]} Nxc7 {[%emt 0:01:07]} 20. dxc7 {[%emt 0:00:00]} Rac8 {[%emt 0:00:10]} 21. Rd7 {[%emt 0:00:00]} Be5 {[%emt 0:00:43]} 22. Be3 {[%emt 0:00:07]} Rxc7 {[%emt 0:01:27]} 23. Rxc7 {[%emt 0:00:08]} Bxc7 {[%emt 0:00:04]} 24. Bxa7 {[%emt 0:00:30]} Be5 {[%emt 0:00:53]} 25. Be3 {[%emt 0:01:51]} Rd8 {[%emt 0:01:42]} 26. g3 {[%emt 0:00:34]} Bxb2 {[%emt 0:01:06]} 27. Rb1 {[%emt 0:00:09]} Bd4 {[%emt 0:00:33]} 28. Bxd4 {[%emt 0:00:45]} Rxd4 {[%emt 0:00:07]} 29. Rxb7 {[%emt 0:00:02]} Rd1+ {[%emt 0:00:17]} 30. Kg2 {[%emt 0:00:12]} Ra1 {[%emt 0:00:01]} 31. Rb2 {[%emt 0:00:35]} Kg7 {[%emt 0:00:55]} 32. h4 {[%emt 0:00:19]} h5 {[%emt 0:02:24]} 33. Kf3 {[%emt 0:00:13]} Kf6 {[%emt 0:00:57]} 34. Ke4 {[%emt 0:00:26]} Re1+ {[%emt 0:00:51]} 35. Kd4 {[%emt 0:00:35]} e5+ {[%emt 0:02:11]} 36. Kc5 {[%emt 0:00:15]} Ra1 {[%emt 0:00:45]} 37. Kb5 {[%emt 0:00:11]} Kf5 {[%emt 0:00:12]} 38. a4 {[%emt 0:00:06]} Kg4 {[%emt 0:00:39]} 39. a5 {[%emt 0:00:41]} Kf3 {[%emt 0:00:32]} 40. a6 {[%emt 0:00:13]} e4 {[%emt 0:00:51]} 41. Kb6 {[%emt 0:15:20]} e3 {[%emt 0:15:07]} 42. fxe3 {[%emt 0:00:04]} Kxe3 {[%emt 0:00:05]} 43. Rb3+ {[%emt 0:00:23]} Kd4 {[%emt 0:00:30]} 44. a7 {[%emt 0:00:12]} Kc4 {[%emt 0:00:58]} 45. Rb2 {[%emt 0:00:36]} Kc3 {[%emt 0:00:08]} 46. Rb5 {[%emt 0:00:14]} Kc4 {[%emt 0:00:18]} 47. Ra5 {[%emt 0:01:46]} 1-0

[Event "GER-ch Youth-U12 2022"]
[Site "Willingen"]
[Date "2022.06.06"]
[Round "3.9"]
[White "Skembris, Simon Max"]
[Black "Dordevic, Tom"]
[Result "0-1"]
[ECO "B15"]
[WhiteElo "1413"]
[BlackElo "1771"]
[Annotator "NA RC COMBH"]
[PlyCount "116"]
[EventDate "2022.06.05"]
[EventType "swiss"]
[EventRounds "9"]
[EventCountry "GER"]
[SourceTitle "playchess.com"]
[Source "ChessBase"]
[SourceQuality "1"]
[TimeControl "40/4500+30:900+30"]

1. e4 {[%emt 0:00:00]} c6 {[%emt 0:00:00]} 2. d4 {[%emt 0:00:00]} d5 {[%emt 0:00:00]} 3. Nc3 {[%emt 0:00:00]} dxe4 {[%emt 0:00:00]} 4. Nxe4 {[%emt 0:00:00]} Nf6 {[%emt 0:00:00]} 5. Nxf6+ {[%emt 0:00:00]} exf6 {[%emt 0:00:00]} 6. c3 {[%emt 0:00:00]} Bd6 {[%emt 0:00:00]} 7. Bd3 {[%emt 0:00:00]} O-O {[%emt 0:00:00]} 8. Ne2 {[%emt 0:00:00]} Bg4 {[%emt 0:00:00]} 9. Qc2 {[%emt 0:00:00]} h6 {[%emt 0:00:00]} 10. h3 {[%emt 0:00:00]} Bxe2 {[%emt 0:00:00]} 11. Bxe2 {[%emt 0:00:00]} Re8 {[%emt 0:00:00]} 12. Be3 {[%emt 0:00:00]} Nd7 {[%emt 0:00:00]} 13. O-O {[%emt 0:00:00]} Nf8 {[%emt 0:00:00]} 14. Bc4 {[%emt 0:00:00]} Qc7 {[%emt 0:00:00]} 15. Qf5 {[%emt 0:04:41]} Qd7 {[%emt 0:00:45]} 16. Qxd7 {[%emt 0:03:17]} Nxd7 {[%emt 0:00:04]} 17. Bd3 {[%emt 0:03:51]} Nf8 {[%emt 0:06:45]} 18. Rfe1 {[%emt 0:04:32]} Ng6 {[%emt 0:03:46]} 19. g3 {[%emt 0:04:07]} a6 {[%emt 0:12:27]} 20. Kg2 {[%emt 0:08:07]} Rad8 {[%emt 0:02:09]} 21. Rad1 {[%emt 0:02:05]} Kf8 {[%emt 0:02:45]} 22. f4 {[%emt 0:07:09]} Bc7 {[%emt 0:02:58]} 23. Bc2 {[%emt 0:04:39]} Bb6 {[%emt 0:03:34]} 24. Bf2 {[%emt 0:01:45]} Ne7 {[%emt 0:17:07]} 25. Kf3 {[%emt 0:02:10]} Nd5 {[%emt 0:03:12]} 26. Rxe8+ {[%emt 0:02:36]} Kxe8 {[%emt 0:01:45]} 27. a3 {[%emt 0:02:03]} Nc7 {[%emt 0:02:15]} 28. Bb3 {[%emt 0:01:36]} Kf8 {[%emt 0:04:23]} 29. Re1 {[%emt 0:01:58]} Nd5 {[%emt 0:03:02]} 30. Rd1 {[%emt 0:03:26]} Nc7 {[%emt 0:02:41]} 31. c4 {[%emt 0:06:05]} Ne6 {[%emt 0:02:11]} 32. d5 {[%emt 0:03:50]} Bxf2 {[%emt 0:00:30]} 33. Kxf2 {[%emt 0:01:04]} cxd5 {[%emt 0:00:27]} 34. Rxd5 {[%emt 0:04:13]} Rc8 {[%emt 0:00:30]} 35. f5 {[%emt 0:02:45]} Nc5 {[%emt 0:00:58]} 36. Bc2 {[%emt 0:00:15]} Ke7 {[%emt 0:00:20]} 37. b4 {[%emt 0:00:29]} Nd7 {[%emt 0:00:05]} 38. c5 {[%emt 0:00:44]} Ne5 {[%emt 0:03:14]} 39. Ba4 {[%emt 0:01:42]} Rc7 {[%emt 0:01:24]} 40. Bb3 {[%emt 0:00:39]} Rc8 {[%emt 0:08:25]} 41. Rd6 {[%emt 0:16:13]} Rc7 {[%emt 0:15:54]} 42. Bd5 {[%emt 0:01:26]} Nd3+ {[%emt 0:00:00]} 43. Ke2 {[%emt 0:00:00]} Nxc5 {[%emt 0:00:00]} 44. Rb6 {[%emt 0:00:00]} Na4 {[%emt 0:00:00]} 45. Rxb7 {[%emt 0:00:00]} Nc3+ {[%emt 0:00:00]} 46. Kd3 {[%emt 0:00:00]} Nxd5 {[%emt 0:00:00]} 47. Rb8 {[%emt 0:00:00]} Rd7 {[%emt 0:00:00]} 48. Kc4 {[%emt 0:00:00]} Ne3+ {[%emt 0:07:06]} 49. Kc5 {[%emt 0:00:00]} Rd5+ {[%emt 0:00:51]} 50. Kc6 {[%emt 0:00:00]} Rd6+ {[%emt 0:00:11]} 51. Kb7 {[%emt 0:00:00]} Nc4 {[%emt 0:01:32]} 52. a4 {[%emt 0:00:00]} Rb6+ {[%emt 0:00:37]} 53. Ka7 {[%emt 0:00:00]} Rxb8 {[%emt 0:00:06]} 54. Kxb8 {[%emt 0:00:00]} Nb6 {[%emt 0:00:06]} 55. a5 {[%emt 0:00:00]} Nd5 {[%emt 0:00:50]} 56. b5 {[%emt 0:00:00]} axb5 {[%emt 0:00:07]} 57. a6 {[%emt 0:00:00]} Kd6 {[%emt 0:00:30]} 58. a7 {[%emt 0:00:00]} Nc7 {[%emt 0:00:05]} 0-1

[Event "GER-ch Youth-U12 2022"]
[Site "Willingen"]
[Date "2022.06.06"]
[Round "3.10"]
[White "Neuhoff, Laertes"]
[Black "Nguyen, Bach Khoi"]
[Result "1-0"]
[ECO "C84"]
[WhiteElo "1990"]
[BlackElo "1261"]
[Annotator "TA"]
[PlyCount "79"]
[EventDate "2022.06.05"]
[EventType "swiss"]
[EventRounds "9"]
[EventCountry "GER"]
[SourceTitle "playchess.com"]
[Source "ChessBase"]
[SourceQuality "1"]
[TimeControl "40/4500+30:900+30"]

{[%evp 22,79,-51,-33,-35,-41,-31,-55,-26,-37,-35,-68,-63,-87,-81,-97,-74,-60,-43,-93,-90,-104,-94,-92,-98,-110,-92,-91,-100,-110,17,17,20,18,32,0,4,4,47,34,48,56,59,60,73,64,132,137,128,138,171,161,314,324,713,704,721,687,29992,29993]} 1. e4 {[%emt 0:00:00]} e5 {[%emt 0:00:00]} 2. Nf3 {[%emt 0:00:00]} Nc6 {[%emt 0:00:00]} 3. Bb5 {[%emt 0:00:00]} a6 {[%emt 0:00:00]} 4. Ba4 {[%emt 0:00:00]} Nf6 {[%emt 0:00:00]} 5. d3 {[%emt 0:00:00]} b5 {[%emt 0:00:00]} 6. Bb3 {[%emt 0:00:00]} Be7 {[%emt 0:00:00]} 7. O-O {[%emt 0:00:00]} d6 {[%emt 0:00:00]} 8. h3 {[%emt 0:00:00]} O-O {[%emt 0:00:00]} 9. Nc3 {[%emt 0:00:00]} Na5 {[%emt 0:00:00]} 10. Nd5 {[%emt 0:01:50]} (10. Ne2) 10... Nxd5 {[%emt 0:00:00]} 11. Bxd5 {[%emt 0:05:11]} c6 {[%emt 0:00:00]} 12. Bb3 {[%emt 0:01:35]} Nxb3 {[%emt 0:00:00] C84: Closed Ruy Lopez: Unusual White 6th moves.} 13. axb3 {[%emt 0:00:13]} f5 {[%emt 0:02:13]} 14. Re1 {[%emt 0:07:36]} Be6 {[%emt 0:06:38] Black is slightly better.} 15. exf5 {[%emt 0:12:21]} Bxf5 {[%emt 0:01:18]} ({Of course not} 15... Rxf5 16. Nd4 exd4 17. Rxe6 $11) 16. d4 {[%emt 0:01:47]} e4 {[%emt 0:04:40] [#]} 17. Nd2 $146 {[%emt 0:03:30][%cal Bf3d2,Bd2f1,Bf1g3][%mdl 32]} ({Predecessor:} 17. Nh2 Bh4 18. Be3 Qf6 19. Qe2 Qg6 20. Kh1 Qf7 21. Rf1 a5 22. Qd2 Bd8 23. f3 {0-1 (49) Prieto,E (2050)-Pedraza,Y (2135) Medellin 2016}) 17... d5 {[%emt 0:03:17]} 18. Nf1 {[%emt 0:03:42]} Bh4 {[%emt 0:02:59]} 19. Be3 {[%emt 0:06:56]} Qf6 {[%emt 0:04:56][%cal Of5h3]} 20. Qd2 {[%emt 0:04:16]} (20. Nh2 $15) 20... Qg6 {[%emt 0:04:48] [#] White must now prevent ...Bxh3.} 21. Kh2 {[%emt 0:02:31]} Ra7 {[%emt 0:04:07]} 22. Ng3 {[%emt 0:04:49]} Bc8 {[%emt 0:07:28]} 23. Rac1 {[%emt 0:03:29]} Be6 {[%emt 0:02:02]} 24. Qe2 {[%emt 0:08:33]} Raf7 {[%emt 0:04:39]} 25. Ra1 {[%emt 0:01:05]} Bxg3+ {[%emt 0:01:44]} (25... Bc8 $17 26. c3 Bd8) 26. fxg3 $11 {[%emt 0:00:14]} Ra8 {[%emt 0:00:50]} 27. Ra5 {[%emt 0:00:42]} Bc8 {[%emt 0:05:58]} 28. c4 {[%emt 0:02:28]} Rc7 {[%emt 0:01:41]} 29. Rc1 {[%emt 0:00:43][%cal Rc4b5,Be1c1,Bc1c5,Bc5d5][%mdl 32]} Rb7 {[%emt 0:04:44]} 30. cxd5 {[%emt 0:02:27]} cxd5 {[%emt 0:00:13]} 31. Rc5 {[%emt 0:01:47]} Qb6 {[%emt 0:01:48]} 32. b4 {[%emt 0:00:33]} Qe6 {[%emt 0:01:07]} 33. Qh5 {[%emt 0:02:37]} g6 {[%emt 0:02:38]} (33... Rd7 $14) 34. Qxd5 $16 {[%emt 0:01:24] White is more active.} Qxd5 {[%emt 0:00:06]} 35. Rxd5 {[%emt 0:00:07]} Rc7 {[%emt 0:00:49]} 36. Rdxb5 {[%emt 0:02:00]} Rc2 $2 {[%emt 0:00:16]} (36... axb5 37. Rxa8 h5) 37. Re5 $18 {[%emt 0:04:39] [#] Threatens to win with Re8+.} Rxb2 $2 {[%emt 0:00:15]} (37... Rc7 38. b5 (38. Rxe4 Bb7 $18) 38... Rd7 39. Rxe4 Bb7) 38. Rac5 {[%emt 0:01:00]} Re2 {[%emt 0:03:10]} 39. Bh6 {[%emt 0:00:51] Threatening mate with Re7.} Kf7 {[%emt 0:04:13] Inhibits Re7+.} 40. Rc7+ {[%emt 0:00:19] Weighted Error Value: White=0.09 (flawless) /Black=0.63} 1-0

[Event "GER-ch Youth-U12 2022"]
[Site "Willingen"]
[Date "2022.06.06"]
[Round "3.12"]
[White "Herrmann, Jakob"]
[Black "Büchel, David"]
[Result "1/2-1/2"]
[ECO "B23"]
[WhiteElo "1737"]
[BlackElo "1527"]
[Annotator "NA RC COMBH"]
[PlyCount "64"]
[EventDate "2022.06.05"]
[EventType "swiss"]
[EventRounds "9"]
[EventCountry "GER"]
[SourceTitle "playchess.com"]
[Source "ChessBase"]
[SourceQuality "1"]
[TimeControl "40/4500+30:900+30"]

1. e4 {[%emt 0:00:00]} c5 {[%emt 0:00:00]} 2. Ne2 {[%emt 0:00:00]} d6 {[%emt 0:00:00]} 3. Nbc3 {[%emt 0:00:00]} g6 {[%emt 0:00:00]} 4. d3 {[%emt 0:00:00]} Nc6 {[%emt 0:00:00]} 5. Be3 {[%emt 0:00:00]} Bg7 {[%emt 0:00:00]} 6. Qd2 {[%emt 0:00:00]} e6 {[%emt 0:00:00]} 7. d4 {[%emt 0:00:00]} cxd4 {[%emt 0:00:00]} 8. Nxd4 {[%emt 0:00:00]} Nge7 {[%emt 0:00:00]} 9. Ndb5 {[%emt 0:00:00]} d5 {[%emt 0:00:00]} 10. exd5 {[%emt 0:00:00]} Nxd5 {[%emt 0:00:00]} 11. Nxd5 {[%emt 0:00:00]} exd5 {[%emt 0:00:00]} 12. Bc5 {[%emt 0:00:00]} Bf8 {[%emt 0:07:43]} 13. Bxf8 {[%emt 0:20:27]} Rxf8 {[%emt 0:04:16]} 14. Qxd5 {[%emt 0:00:57]} Qxd5 {[%emt 0:01:41]} 15. Nc7+ {[%emt 0:00:07]} Kd8 {[%emt 0:00:20]} 16. Nxd5 {[%emt 0:00:11]} Re8+ {[%emt 0:00:36]} 17. Ne3 {[%emt 0:00:27]} Kc7 {[%emt 0:02:37]} 18. O-O-O {[%emt 0:01:54]} Be6 {[%emt 0:00:52]} 19. Bc4 {[%emt 0:01:52]} Bxc4 {[%emt 0:02:46]} 20. Nxc4 {[%emt 0:00:15]} Re2 {[%emt 0:01:47]} 21. Ne3 {[%emt 0:05:34]} Rxf2 {[%emt 0:02:07]} 22. Nd5+ {[%emt 0:00:55]} Kc8 {[%emt 0:01:24]} 23. Rhe1 {[%emt 0:00:06]} Rb8 {[%emt 0:10:39]} 24. Re8+ {[%emt 0:02:54]} Kd7 {[%emt 0:06:05]} 25. Nf6+ {[%emt 0:00:13]} Kc7 {[%emt 0:00:24]} 26. Rd7+ {[%emt 0:00:22]} Kb6 {[%emt 0:00:19]} 27. Nd5+ {[%emt 0:00:10]} Ka6 {[%emt 0:03:04]} 28. Re3 {[%emt 0:20:58]} Rf5 {[%emt 0:09:58]} 29. Nc7+ {[%emt 0:25:36]} Ka5 {[%emt 0:04:01]} 30. Ra3+ {[%emt 0:02:41]} Kb6 {[%emt 0:04:22]} 31. Rb3+ {[%emt 0:00:34]} Ka5 {[%emt 0:00:54]} 32. Rd5+ {[%emt 0:02:15]} Rxd5 {[%emt 0:01:30]} 1/2-1/2

[Event "GER-ch Youth-U12 2022"]
[Site "Willingen"]
[Date "2022.06.06"]
[Round "3.13"]
[White "Mohammadzadeh, Daris"]
[Black "Schuricht, Emil Frederick"]
[Result "1-0"]
[ECO "B11"]
[WhiteElo "1371"]
[BlackElo "1641"]
[Annotator "NA RC COMBH"]
[PlyCount "53"]
[EventDate "2022.06.05"]
[EventType "swiss"]
[EventRounds "9"]
[EventCountry "GER"]
[SourceTitle "playchess.com"]
[Source "ChessBase"]
[SourceQuality "1"]
[TimeControl "40/4500+30:900+30"]

1. e4 {[%emt 0:00:00]} c6 {[%emt 0:00:00]} 2. Nc3 {[%emt 0:00:00]} d5 {[%emt 0:00:00]} 3. Nf3 {[%emt 0:00:00]} dxe4 {[%emt 0:00:00]} 4. Nxe4 {[%emt 0:00:00]} Nf6 {[%emt 0:00:00]} 5. Qe2 {[%emt 0:00:00]} e6 {[%emt 0:00:00]} 6. d4 {[%emt 0:00:00]} Be7 {[%emt 0:00:00]} 7. g3 {[%emt 0:00:00]} Nbd7 {[%emt 0:00:00]} 8. Bf4 {[%emt 0:00:00]} O-O {[%emt 0:00:00]} 9. Bg2 {[%emt 0:02:08]} c5 {[%emt 0:00:00]} 10. dxc5 {[%emt 0:05:20]} Nxe4 {[%emt 0:01:00]} 11. Qxe4 {[%emt 0:02:04]} Nxc5 {[%emt 0:00:10]} 12. Qe2 {[%emt 0:00:57]} Qb6 {[%emt 0:00:39]} 13. Be5 {[%emt 0:05:28]} Bd7 {[%emt 0:03:20]} 14. O-O {[%emt 0:04:43]} Bb5 {[%emt 0:04:27]} 15. c4 {[%emt 0:00:46]} Bc6 {[%emt 0:00:04]} 16. Rad1 {[%emt 0:04:01]} Rfd8 {[%emt 0:00:49]} 17. Rfe1 {[%emt 0:04:30]} Nd7 {[%emt 0:05:26]} 18. Bd4 {[%emt 0:08:32]} Bc5 {[%emt 0:00:21]} 19. Bc3 {[%emt 0:00:30]} Bb4 {[%emt 0:09:54]} 20. Bxb4 {[%emt 0:09:59]} Qxb4 {[%emt 0:00:11]} 21. b3 {[%emt 0:01:43]} Nc5 {[%emt 0:07:52]} 22. Rxd8+ {[%emt 0:05:27]} Rxd8 {[%emt 0:00:11]} 23. Rd1 {[%emt 0:00:23]} Qb6 {[%emt 0:08:48]} 24. b4 {[%emt 0:08:06]} Rxd1+ {[%emt 0:03:42]} 25. Qxd1 {[%emt 0:00:13]} Nd7 {[%emt 0:00:22]} 26. b5 {[%emt 0:00:39]} Bxf3 {[%emt 0:00:08]} 27. Qxd7 {[%emt 0:00:16]} 1-0

[Event "GER-ch Youth-U12 2022"]
[Site "Willingen"]
[Date "2022.06.06"]
[Round "3.14"]
[White "Nemitz, Alfred"]
[Black "Bangert, Jonas"]
[Result "1/2-1/2"]
[ECO "B13"]
[WhiteElo "1611"]
[BlackElo "1483"]
[Annotator "NA RC COMBH"]
[PlyCount "100"]
[EventDate "2022.06.05"]
[EventType "swiss"]
[EventRounds "9"]
[EventCountry "GER"]
[SourceTitle "playchess.com"]
[Source "ChessBase"]
[SourceQuality "1"]
[TimeControl "40/4500+30:900+30"]

1. e4 {[%emt 0:00:00]} c6 {[%emt 0:00:00]} 2. d4 {[%emt 0:00:00]} d5 {[%emt 0:00:00]} 3. exd5 {[%emt 0:00:00]} cxd5 {[%emt 0:00:00]} 4. Bd3 {[%emt 0:00:00]} Nc6 {[%emt 0:00:00]} 5. c3 {[%emt 0:00:00]} Nf6 {[%emt 0:00:00]} 6. h3 {[%emt 0:00:00]} e6 {[%emt 0:00:00]} 7. Bf4 {[%emt 0:00:00]} Qb6 {[%emt 0:00:00]} 8. Qc2 {[%emt 0:00:00]} Bd7 {[%emt 0:00:00]} 9. Nf3 {[%emt 0:00:00]} Rc8 {[%emt 0:01:48]} 10. Qe2 {[%emt 0:00:12]} a5 {[%emt 0:18:49]} 11. O-O {[%emt 0:04:19]} a4 {[%emt 0:01:58]} 12. Ne5 {[%emt 0:04:09]} Nxe5 {[%emt 0:16:49]} 13. Bxe5 {[%emt 0:01:36]} Bc6 {[%emt 0:07:37]} 14. f4 {[%emt 0:10:04]} Nd7 {[%emt 0:07:53]} 15. f5 {[%emt 0:17:38]} f6 {[%emt 0:01:47]} 16. Kh1 {[%emt 0:11:42]} fxe5 {[%emt 0:04:36]} 17. fxe6 {[%emt 0:09:25]} Nf6 {[%emt 0:01:29]} 18. Qxe5 {[%emt 0:06:34]} Qc7 {[%emt 0:09:08]} 19. Qg5 {[%emt 0:00:59]} Qe7 {[%emt 0:03:04]} 20. Nd2 {[%emt 0:06:04]} h6 {[%emt 0:05:26]} 21. Bg6+ {[%emt 0:02:47]} Kd8 {[%emt 0:00:06]} 22. Qe5 {[%emt 0:00:05]} Rc7 {[%emt 0:02:49]} 23. Rae1 {[%emt 0:02:33]} Kc8 {[%emt 0:00:16]} 24. Nf3 {[%emt 0:01:07]} Qd6 {[%emt 0:01:39]} 25. Qe3 {[%emt 0:04:23]} Qg3 {[%emt 0:01:08]} 26. Ne5 {[%emt 0:01:54]} Qxe3 {[%emt 0:00:10]} 27. Rxe3 {[%emt 0:00:04]} Be7 {[%emt 0:00:13]} 28. Bf5 {[%emt 0:02:23]} Be8 {[%emt 0:01:09]} 29. Rff3 {[%emt 0:00:26]} Rf8 {[%emt 0:01:06]} 30. g4 {[%emt 0:00:42]} h5 {[%emt 0:00:52]} 31. g5 {[%emt 0:00:35]} Ne4 {[%emt 0:00:27]} 32. Bxe4 {[%emt 0:00:28]} dxe4 {[%emt 0:00:04]} 33. Rxf8 {[%emt 0:00:43]} Bxf8 {[%emt 0:00:04]} 34. a3 {[%emt 0:00:38]} Bd6 {[%emt 0:01:15]} 35. Rxe4 {[%emt 0:00:18]} Bxe5 {[%emt 0:00:09]} 36. Rxe5 {[%emt 0:00:07]} b5 {[%emt 0:00:33]} 37. Kg2 {[%emt 0:00:48]} Kd8 {[%emt 0:00:39]} 38. Kf3 {[%emt 0:00:30]} Ke7 {[%emt 0:00:16]} 39. Ke4 {[%emt 0:00:34]} g6 {[%emt 0:00:49]} 40. Kd5 {[%emt 0:00:49]} Rc8 {[%emt 0:00:29]} 41. h4 {[%emt 0:00:00]} Rc6 {[%emt 0:00:00]} 42. Ke4 {[%emt 0:00:00]} Rd6 {[%emt 0:00:00]} 43. d5 {[%emt 0:00:00]} Rd8 {[%emt 0:00:00]} 44. Kf4 {[%emt 0:00:39]} Kd6 {[%emt 0:00:00]} 45. Re4 {[%emt 0:00:06]} Rc8 {[%emt 0:00:00]} 46. Rd4 {[%emt 0:00:09]} Rc7 {[%emt 0:00:00]} 47. Ke4 {[%emt 0:00:40]} Rc5 {[%emt 0:00:00]} 48. Rd2 {[%emt 0:00:18]} Rc4+ {[%emt 0:00:00]} 49. Rd4 {[%emt 0:00:09]} Rc8 {[%emt 0:00:37]} 50. Rd2 {[%emt 0:01:06]} Rc7 {[%emt 0:09:39]} 1/2-1/2